fUST/lending_fUST_20250123
["ID","MTS","AMOUNT","RATE_DAILY","PERIOD"]
[350070607,1737599433347,-151.0,0.00019198,2]
[350070608,1737599433357,-151.0,0.00019198,2]
[350070609,1737599433367,-151.0,0.00019198,2]
[350070610,1737599433377,-500.0,0.00019198,3]
[350070611,1737599433387,-500.0,0.00019198,3]
[350070612,1737599433396,-500.0,0.00019198,3]
[350070613,1737599433406,-151.0,0.00019198,2]
[350070614,1737599433416,-151.0,0.00019198,2]
[350070615,1737599433426,-500.0,0.00019199,2]
[350070616,1737599433439,-293.09389953,0.00019199,2]
[350070617,1737599433449,-154.362676,0.00019199,2]
[350070618,1737599433458,-151.0,0.00019199,2]
[350070619,1737599433467,-151.0,0.00019199,2]
[350070620,1737599433476,-158.700261,0.00019199,2]
[350070621,1737599433484,-151.0,0.00019199,2]
[350070622,1737599433494,-151.0,0.00019199,2]
[350070623,1737599433504,-151.0,0.00019199,2]
[350070624,1737599433513,-151.0,0.00019199,2]
[350070625,1737599433523,-436.18302292,0.00019199,3]
[350070626,1737599433532,-360.80866429,0.000192,5]
[350070661,1737599438023,-500.0,0.00019197,2]
[350070663,1737599438033,-500.0,0.00019197,2]
[350070665,1737599438042,-500.0,0.00019197,2]
[350070667,1737599438051,-500.0,0.00019197,2]
[350070669,1737599438060,-500.0,0.00019197,2]
[350070671,1737599438069,-500.0,0.00019197,2]
[350070673,1737599438079,-329.62669204,0.00019197,2]
[350070675,1737599438090,-593.17952818,0.00019197,2]
[350070687,1737599438188,-500.0,0.00019197,2]
[350070689,1737599438201,-500.0,0.00019197,2]
[350070691,1737599438210,-500.0,0.00019197,2]
[350070693,1737599438219,-500.0,0.00019197,2]
[350070695,1737599438228,-475.85124248,0.00019197,2]
[350070697,1737599438238,-500.0,0.00019197,2]
[350070699,1737599438247,-500.0,0.00019197,2]
[350070701,1737599438255,-500.0,0.00019197,2]
[350070703,1737599438264,-271.84330876,0.00019197,2]
[350070705,1737599438274,-500.0,0.00019197,2]
[350070707,1737599438284,-500.0,0.00019197,2]
[350070709,1737599438294,-500.0,0.00019197,2]
[350070711,1737599438303,-500.0,0.00019197,2]
[350070713,1737599438312,-500.0,0.00019197,2]
[350070715,1737599438322,-500.0,0.00019197,2]
[350070717,1737599438332,-500.0,0.00019197,2]
[350070719,1737599438341,-500.0,0.00019197,2]
[350070721,1737599438351,-500.0,0.00019197,2]
[350070723,1737599438360,-500.0,0.00019197,2]
[350070725,1737599438369,-500.0,0.00019197,2]
[350070727,1737599438378,-500.0,0.00019197,2]
[350070729,1737599438392,-500.0,0.00019197,2]
[350070732,1737599438402,-500.0,0.00019197,2]
[350070734,1737599438411,-500.0,0.00019197,2]
[350070736,1737599438421,-500.0,0.00019197,2]
[350070738,1737599438430,-500.0,0.00019197,2]
[350070740,1737599438442,-488.52940173,0.00019197,2]
[350070742,1737599438454,-11.47059827,0.00019197,2]
[350070744,1737599438464,-500.0,0.00019197,2]
[350070746,1737599438473,-500.0,0.00019197,2]
[350070748,1737599438482,-500.0,0.00019197,2]
[350070750,1737599438491,-500.0,0.00019197,2]
[350070752,1737599438501,-500.0,0.00019197,2]
[350070754,1737599438511,-500.0,0.00019197,2]
[350070756,1737599438520,-500.0,0.00019197,2]
[350070758,1737599438529,-500.0,0.00019197,2]
[350070760,1737599438538,-500.0,0.00019197,2]
[350070762,1737599438547,-500.0,0.00019197,2]
[350070764,1737599438556,-500.0,0.00019197,2]
[350070766,1737599438565,-160.82534733,0.00019197,2]
[350070768,1737599438575,-500.0,0.00019197,2]
[350070770,1737599438584,-500.0,0.00019197,2]
[350070772,1737599438593,-500.0,0.00019197,2]
[350070774,1737599438603,-10933.50448039,0.000192,5]
[350070932,1737599440108,-151.0,0.00019198,2]
[350070934,1737599440118,-11162.18120878,0.000192,5]
[350070936,1737599440128,-4573.35960728,0.000192,5]
[350070938,1737599440138,-509.12584887,0.000192,2]
[350070940,1737599440147,-500.0,0.000192,2]
[350070942,1737599440156,-20317.31417085,0.000192,15]
[350070945,1737599440168,-7834.23024225,0.000192,15]
[350070947,1737599440179,-453.89977715,0.000192,15]
[350070949,1737599440190,-116413.59404441,0.000192,15]
[350071220,1737599442953,-501.59388367,0.00019178,2]
[350071222,1737599442963,-152.31,0.00019186,2]
[350071224,1737599442972,-2751.09611633,0.000192,15]
[350071229,1737599443007,-4850.47519853,0.000192,15]
[350071231,1737599443019,-10964.56957066,0.000192,15]
[350071233,1737599443032,-2320.45035696,0.000192,15]
[350071525,1737599445882,-11725.1572032,0.000192,15]
[350071527,1737599445895,-409.16,0.000192,15]
[350071531,1737599445940,-2577.85,0.000192,15]
[350071537,1737599445999,-10226.60858323,0.000192,15]
[350073845,1737599488169,221.47,0.00015055,2]
[350073846,1737599583977,108660.7038485,0.00024,120]
[350073848,1737599990656,185.280534,0.00013973,2]
[350073931,1737600632216,-205.57529099,0.00016378,2]
[350073932,1737600632226,-205.57529099,0.00016543,2]
[350073934,1737600632237,-518.2640757,0.00016779,2]
[350073936,1737600632248,-88.96486606,0.00016779,2]
[350073938,1737600632257,-250.0,0.00017119,2]
[350073940,1737600632267,-8365.3101161,0.00017714,2]
[350073942,1737600632277,-300.0,0.00017768,2]
[350073944,1737600632286,-3232.8827126,0.00017769,2]
[350073946,1737600632295,-267.792973,0.00017828,2]
[350073948,1737600632304,-150.328793,0.000181,2]
[350073950,1737600632314,-478.012,0.0001824,2]
[350073952,1737600632324,-375.57632439,0.000188,2]
[350073954,1737600632333,-209.05424436,0.000188,2]
[350073956,1737600632342,-155.37,0.000188,2]
[350073958,1737600632352,-500.0,0.00018903,2]
[350073960,1737600632361,-11089.71058655,0.0001899,2]
[350074087,1737600638101,-8394.98886646,0.0001899,2]
[350074089,1737600638111,-300.0,0.00019,2]
[350074091,1737600638120,-1574.74996305,0.00019057,2]
[350074093,1737600638129,-164.0,0.00019057,2]
[350074095,1737600638138,-151.000001,0.0001908,2]
[350074097,1737600638148,-267.21593774,0.00019173,2]
[350074099,1737600638157,-350.38292715,0.00019173,2]
[350074101,1737600638166,-248.40907996,0.00019173,2]
[350074103,1737600638176,-500.0,0.00019173,2]
[350074105,1737600638185,-467.94592422,0.00019173,2]
[350074106,1737600638197,-218.84016244,0.00019173,2]
[350074107,1737600638207,-500.0,0.00019173,2]
[350074108,1737600638217,-500.0,0.00019173,2]
[350074109,1737600638227,-500.0,0.00019173,2]
[350074110,1737600638237,-500.0,0.00019173,2]
[350074111,1737600638246,-470.05978916,0.00019173,2]
[350074112,1737600638255,-160.62532247,0.00019173,2]
[350074113,1737600638265,-502.08357548,0.00019173,2]
[350074114,1737600638275,-285.602,0.00019177,2]
[350074115,1737600638284,-500.0,0.00019177,2]
[350074116,1737600638293,-500.0,0.00019177,2]
[350074117,1737600638303,-500.0,0.00019177,2]
[350074118,1737600638312,-561.14413909,0.00019177,2]
[350074119,1737600638321,-500.0,0.00019177,2]
[350074120,1737600638330,-571.56287821,0.00019177,2]
[350074121,1737600638339,-500.0,0.00019177,2]
[350074122,1737600638349,-424.87124785,0.00019177,2]
[350074124,1737600638358,-500.0,0.00019177,2]
[350074126,1737600638368,-500.0,0.00019177,2]
[350074128,1737600638378,-500.0,0.00019177,2]
[350074130,1737600638387,-500.0,0.00019177,2]
[350074132,1737600638397,-500.0,0.00019177,2]
[350074134,1737600638407,-500.0,0.00019177,2]
[350074136,1737600638416,-500.0,0.00019177,2]
[350074138,1737600638425,-500.0,0.00019178,2]
[350074140,1737600638435,-500.0,0.00019178,2]
[350074142,1737600638444,-500.0,0.00019178,2]
[350074144,1737600638454,-511.88646255,0.00019178,2]
[350074146,1737600638464,-231.90924715,0.00019178,2]
[350074148,1737600638473,-509.63766258,0.00019178,2]
[350074150,1737600638483,-500.0,0.00019178,7]
[350074152,1737600638492,-506.94883477,0.00019178,2]
[350074154,1737600638502,-516.10910376,0.00019178,2]
[350074156,1737600638511,-520.79274838,0.00019178,2]
[350074158,1737600638520,-509.06426535,0.00019178,2]
[350074160,1737600638529,-500.0,0.00019178,2]
[350074162,1737600638539,-500.0,0.00019178,2]
[350074164,1737600638549,-507.57396187,0.00019178,2]
[350074166,1737600638562,-507.56491332,0.00019178,2]
[350074169,1737600638574,-500.0,0.00019178,2]
[350074171,1737600638583,-502.05279092,0.00019178,2]
[350074173,1737600638593,-643.31,0.00019178,2]
[350074175,1737600638604,-505.72576025,0.00019178,2]
[350074177,1737600638613,-438.8444676,0.00019178,2]
[350074179,1737600638623,-247.85011285,0.00019178,2]
[350074181,1737600638633,-504.1171218,0.00019178,2]
[350074183,1737600638643,-718.02,0.00019178,2]
[350074185,1737600638652,-509.85321243,0.00019178,2]
[350074186,1737600638662,-500.0,0.00019178,2]
[350074189,1737600638672,-541.73781514,0.00019178,2]
[350074191,1737600638682,-500.0,0.00019178,2]
[350074193,1737600638695,-504.80460127,0.00019178,2]
[350074195,1737600638708,-500.0,0.00019178,2]
[350074197,1737600638721,-447.6647033,0.00019178,2]
[350074199,1737600638730,-475.46468773,0.00019178,2]
[350074201,1737600638740,-513.59930972,0.00019178,2]
[350074203,1737600638750,-502.75658738,0.00019178,2]
[350074205,1737600638760,-521.71120987,0.00019178,2]
[350074207,1737600638770,-500.0,0.00019178,2]
[350074209,1737600638779,-500.0,0.00019178,2]
[350074211,1737600638788,-500.0,0.00019178,2]
[350074213,1737600638798,-500.0,0.00019178,2]
[350074215,1737600638808,-525.12083369,0.00019178,2]
[350074217,1737600638818,-511.55890346,0.00019178,2]
[350074219,1737600638827,-706.33,0.00019178,2]
[350074234,1737600638958,-500.0,0.00019178,2]
[350074236,1737600638971,-500.0,0.00019178,2]
[350074238,1737600638981,-523.57992021,0.00019178,2]
[350074240,1737600638990,-500.0,0.00019178,2]
[350074243,1737600639001,-517.24518253,0.00019178,2]
[350074245,1737600639010,-500.0,0.00019178,2]
[350074247,1737600639020,-503.39180729,0.00019178,2]
[350074249,1737600639029,-500.0,0.00019178,2]
[350074251,1737600639039,-507.140069,0.00019178,2]
[350074253,1737600639048,-648.76562073,0.00019178,2]
[350074255,1737600639057,-518.98242927,0.00019178,2]
[350074257,1737600639066,-500.0,0.00019178,2]
[350074259,1737600639076,-407.15173762,0.00019178,2]
[350074261,1737600639086,-500.0,0.00019178,2]
[350074263,1737600639095,-500.0,0.00019178,2]
[350074265,1737600639104,-500.0,0.00019178,2]
[350074267,1737600639114,-628.0859631,0.00019178,2]
[350074269,1737600639123,-524.97203686,0.00019178,2]
[350074270,1737600639132,-500.0,0.00019178,2]
[350074273,1737600639142,-500.0,0.00019178,2]
[350074274,1737600639151,-500.0,0.00019178,2]
[350074276,1737600639160,-500.0,0.00019178,2]
[350074278,1737600639170,-515.75010554,0.00019178,2]
[350074280,1737600639179,-510.28783116,0.00019178,2]
[350074282,1737600639192,-519.14911742,0.00019178,2]
[350074284,1737600639205,-508.95730786,0.00019178,2]
[350074286,1737600639216,-500.0,0.00019178,2]
[350074288,1737600639225,-584.66146258,0.00019178,2]
[350074290,1737600639236,-572.15949267,0.00019178,2]
[350074293,1737600639246,-243.74145958,0.00019178,2]
[350074304,1737600639345,-256.25854042,0.00019178,2]
[350074306,1737600639355,-525.40418107,0.00019178,2]
[350074308,1737600639365,-5.86129165,0.00019178,2]
[350074311,1737600639377,-504.56620296,0.00019178,2]
[350074313,1737600639386,-500.0,0.00019178,2]
[350074315,1737600639395,-522.73394425,0.00019178,2]
[350074317,1737600639404,-511.46951531,0.00019178,2]
[350074319,1737600639413,-500.0,0.00019178,2]
[350074321,1737600639423,-506.6143364,0.00019178,2]
[350074323,1737600639432,-507.07728348,0.00019178,2]
[350074325,1737600639441,-164.61787,0.00019178,2]
[350074327,1737600639451,-513.54563922,0.00019178,2]
[350074329,1737600639460,-509.04278639,0.00019178,2]
[350074331,1737600639472,-1727.41,0.00019178,2]
[350074333,1737600639481,-506.21570662,0.00019178,2]
[350074335,1737600639491,-9040.24,0.00019178,2]
[350074337,1737600639500,-151.0,0.00019178,2]
[350074339,1737600639509,-500.0,0.00019178,2]
[350074341,1737600639519,-530.0851669,0.00019178,2]
[350074343,1737600639527,-151.0,0.00019178,2]
[350074345,1737600639536,-628.52194137,0.00019178,2]
[350074418,1737600640260,-493.38,0.000188,2]
[350075002,1737600646097,-231.48198395,0.000188,2]
[350075004,1737600646107,-395.0,0.00018972,2]
[350075006,1737600646116,-512.41814424,0.00019178,2]
[350075008,1737600646126,-447.26704026,0.00019178,2]
[350075010,1737600646135,-500.0,0.00019178,2]
[350075012,1737600646144,-500.0,0.00019178,2]
[350075014,1737600646153,-2424.21680397,0.00019178,2]
[350078070,1737600955128,184.21859,0.00013973,2]
[350078082,1737601586337,-168.79144278,0.00017698,2]
[350078083,1737601586360,-267.7929741,0.0001806,2]
[350078084,1737601586383,-2872.4170612,0.0001807,2]
[350078085,1737601586406,-476.507,0.0001824,2]
[350078086,1737601586428,-1076.81356358,0.000189,2]
[350078087,1737601586451,-500.0,0.00018903,2]
[350078088,1737601586474,-300.0,0.00018903,2]
[350078089,1737601586501,-5000.0,0.00018904,7]
[350078090,1737601586526,-395.0,0.00018972,2]
[350078091,1737601586549,-1050.50832776,0.00019,2]
[350078092,1737601586575,-172.24,0.00019025,2]
[350078093,1737601586598,-3000.0,0.000191,2]
[350078094,1737601586621,-3000.0,0.0001911,2]
[350078095,1737601586644,-3000.0,0.0001912,2]
[350078096,1737601586668,-3000.0,0.0001913,2]
[350078097,1737601586692,-3000.0,0.0001914,2]
[350078098,1737601586716,-3000.0,0.0001915,2]
[350078099,1737601586739,-3000.0,0.0001916,2]
[350078100,1737601586761,-3000.0,0.0001917,2]
[350078101,1737601586784,-260.251,0.00019177,2]
[350078102,1737601586807,-174.61809758,0.00019177,2]
[350078103,1737601586833,-451.23823768,0.00019177,2]
[350078104,1737601586858,-213.87458309,0.00019177,2]
[350078105,1737601586881,-2286.67980364,0.00019178,5]
[350078106,1737601586907,-11228.24717673,0.00019178,5]
[350078107,1737601586931,-500.55374819,0.00019178,2]
[350078108,1737601586954,-195.96792053,0.00019178,2]
[350078109,1737601586978,-500.0,0.00019178,2]
[350078110,1737601587007,-517.94272915,0.00019178,2]
[350078111,1737601587031,-500.0,0.00019178,2]
[350078112,1737601587055,-500.0,0.00019178,2]
[350078113,1737601587078,-506.13159114,0.00019178,2]
[350078114,1737601587102,-508.60083564,0.00019178,2]
[350078115,1737601587125,-500.0,0.00019178,2]
[350078116,1737601587148,-503.40842051,0.00019178,2]
[350078117,1737601587171,-510.6747236,0.00019178,2]
[350078118,1737601587194,-490.3162541,0.00019178,2]
[350078119,1737601587226,-500.0,0.00019178,2]
[350078120,1737601587257,-500.0,0.00019178,2]
[350078121,1737601587282,-500.0,0.00019178,2]
[350078122,1737601587305,-159.78997735,0.00019178,2]
[350078123,1737601587330,-527.30588534,0.00019178,2]
[350078124,1737601587353,-500.0,0.00019178,2]
[350078125,1737601587378,-510.56022351,0.00019178,2]
[350078126,1737601587404,-500.0,0.00019178,2]
[350078127,1737601587429,-462.22027976,0.00019178,2]
[350078128,1737601587454,-500.0,0.00019178,2]
[350078129,1737601587487,-659.71,0.00019178,2]
[350078130,1737601587520,-500.0,0.00019178,2]
[350078131,1737601587548,-753.85,0.00019178,2]
[350078132,1737601587575,-513.45727975,0.00019178,2]
[350078133,1737601587603,-536.96568884,0.00019178,2]
[350078134,1737601587629,-500.0,0.00019178,2]
[350078135,1737601587657,-500.0,0.00019178,2]
[350078136,1737601587683,-718.57,0.00019178,2]
[350078137,1737601587709,-1850.68,0.00019178,2]
[350078138,1737601587734,-500.0,0.00019178,2]
[350078139,1737601587766,-610.6977291,0.00019178,2]
[350078140,1737601587792,-3857.18,0.00019178,2]
[350078141,1737601587818,-507.62152868,0.00019178,2]
[350078142,1737601587845,-717.39,0.00019178,2]
[350078143,1737601587871,-732.21,0.00019178,2]
[350078144,1737601587900,-500.0,0.00019178,2]
[350078145,1737601587928,-500.0,0.00019178,2]
[350078146,1737601587953,-500.0,0.00019178,2]
[350078147,1737601587977,-500.0,0.00019178,2]
[350078148,1737601588004,-521.01860265,0.00019178,2]
[350078149,1737601588030,-8897.6,0.00019178,2]
[350078150,1737601588055,-863.24,0.00019178,2]
[350078151,1737601588082,-534.76543833,0.00019178,2]
[350078152,1737601588108,-2425.89,0.00019178,2]
[350078153,1737601588130,-467.74358154,0.00019178,2]
[350078154,1737601588154,-527.49770385,0.00019178,2]
[350078155,1737601588177,-500.0,0.00019178,2]
[350078156,1737601588201,-1821.76,0.00019178,2]
[350078157,1737601588226,-518.55035392,0.00019178,2]
[350078158,1737601588374,-500.0,0.00019178,2]
[350078159,1737601588405,-512.18090862,0.00019178,2]
[350078160,1737601588430,-862.5,0.00019178,2]
[350078161,1737601588456,-2834.8,0.00019178,2]
[350078162,1737601588482,-783.33,0.00019178,2]
[350078163,1737601588509,-500.0,0.00019178,2]
[350078164,1737601588533,-182.33932776,0.00019178,2]
[350078176,1737601805008,183.216145,0.00013973,2]
[350078290,1737601838201,-600.0,0.00018432,2]
[350078292,1737601838211,-600.0,0.00018624,2]
[350078294,1737601838220,-600.0,0.00018816,2]
[350078296,1737601838229,-150.65004673,0.00018903,2]
[350078300,1737601838255,-349.34995327,0.00018903,2]
[350078302,1737601838264,-395.0,0.00018972,2]
[350078304,1737601838274,-602.77958626,0.00019008,2]
[350078306,1737601838283,-517.13481029,0.00019078,2]
[350078308,1737601838291,-300.0,0.00019177,2]
[350078310,1737601838301,-353.7811227,0.00019178,2]
[350078312,1737601838311,-500.0,0.00019178,2]
[350078314,1737601838319,-328.20832789,0.00019178,2]
[350078316,1737601838331,-195.72660959,0.00019178,2]
[350078318,1737601838339,-289.25839041,0.00019178,2]
[350078320,1737601838350,-210.74160959,0.00019178,2]
[350078322,1737601838360,-500.0,0.00019178,2]
[350078324,1737601838369,-271.32060632,0.00019178,2]
[350078326,1737601838378,-401.64962618,0.00019178,2]
[350078328,1737601838387,-574.63186437,0.00019178,2]
[350078330,1737601838396,-500.0,0.00019178,2]
[350078332,1737601838405,-500.0,0.00019178,2]
[350078334,1737601838415,-500.0,0.00019178,2]
[350078337,1737601838424,-500.0,0.00019178,2]
[350078339,1737601838433,-476.01958504,0.00019178,2]
[350078341,1737601838443,-518.99929174,0.00019178,2]
[350078344,1737601838454,-500.0,0.00019178,2]
[350078346,1737601838463,-400.9932845,0.00019178,2]
[350078348,1737601838472,-661.7,0.00019178,2]
[350078350,1737601838481,-525.83134079,0.00019178,2]
[350078352,1737601838491,-1730.46,0.00019178,2]
[350078354,1737601838501,-159.86202692,0.00019178,2]
[350078356,1737601838511,-500.0,0.00019178,2]
[350078358,1737601838520,-528.98966515,0.00019178,2]
[350078360,1737601838532,-5636.43720933,0.00019178,2]
[350078449,1737601843293,-511.38763784,0.00019178,2]
[350078451,1737601843325,-1104.35,0.00019178,2]
[350078453,1737601843335,-500.0,0.00019178,2]
[350078456,1737601843346,-1745.86,0.00019178,2]
[350078458,1737601843355,-687.5,0.00019178,2]
[350078460,1737601843365,-500.0,0.00019178,2]
[350078462,1737601843374,-3645.68775555,0.00019178,2]
[350078465,1737601843394,-3398.24224445,0.00019178,2]
[350078467,1737601843404,-500.0,0.00019178,2]
[350078469,1737601843414,-510.6194429,0.00019178,2]
[350078471,1737601843424,-500.0,0.00019178,2]
[350078473,1737601843434,-500.0,0.00019178,2]
[350078475,1737601843444,-500.0,0.00019178,2]
[350078477,1737601843454,-500.0,0.00019178,2]
[350078479,1737601843463,-500.0,0.00019178,2]
[350078481,1737601843472,-500.0,0.00019178,2]
[350078483,1737601843482,-2324.81,0.00019178,2]
[350078485,1737601843491,-1009.08758495,0.00019178,2]
[350078764,1737601846310,-2408.73241505,0.00019178,2]
[350078766,1737601846320,-2716.68,0.00019178,2]
[350078768,1737601846329,-826.56,0.00019178,2]
[350078770,1737601846339,-750.7,0.00019178,2]
[350078772,1737601846349,-500.0,0.00019178,2]
[350078774,1737601846359,-500.0,0.00019178,2]
[350078776,1737601846368,-968.75,0.00019178,2]
[350078777,1737601846378,-511.45568011,0.00019178,2]
[350078780,1737601846388,-1074.37,0.00019178,2]
[350078781,1737601846398,-512.75890652,0.00019178,2]
[350078783,1737601846408,-524.0364858,0.00019178,2]
[350078786,1737601846418,-398.49245679,0.00019178,2]
[350078788,1737601846427,-500.0,0.00019178,2]
[350078791,1737601846437,-398.32340927,0.00019178,2]
[350078793,1737601846447,-1686.86,0.00019178,2]
[350078795,1737601846458,-5209.46,0.00019178,2]
[350078797,1737601846468,-2666.27,0.00019178,2]
[350078799,1737601846478,-500.0,0.00019178,2]
[350078801,1737601846487,-1122.76,0.00019178,2]
[350078803,1737601846497,-7877.14,0.00019178,2]
[350078805,1737601846507,-809.45,0.00019178,2]
[350078807,1737601846516,-2060.81,0.00019178,2]
[350078809,1737601846525,-500.0,0.00019178,2]
[350078811,1737601846535,-856.86,0.00019178,2]
[350078813,1737601846544,-2388.49,0.00019178,2]
[350078815,1737601846553,-500.0,0.00019178,2]
[350078817,1737601846562,-513.63,0.00019178,2]
[350078819,1737601846573,-500.0,0.00019178,2]
[350078822,1737601846586,-500.0,0.00019178,2]
[350078823,1737601846596,-516.23759691,0.00019178,2]
[350078825,1737601846606,-948.87,0.00019178,2]
[350078827,1737601846615,-508.94007166,0.00019178,2]
[350078830,1737601846626,-511.09244994,0.00019178,2]
[350078832,1737601846636,-500.0,0.00019178,2]
[350078834,1737601846645,-500.0,0.00019178,2]
[350078836,1737601846655,-500.0,0.00019178,2]
[350078838,1737601846666,-469.62746594,0.00019178,2]
[350078839,1737601846676,-884.12,0.00019178,2]
[350078842,1737601846686,-514.1084449,0.00019178,2]
[350078843,1737601846695,-500.0,0.00019178,2]
[350078845,1737601846704,-1397.66,0.00019178,2]
[350078847,1737601846713,-1773.57,0.00019178,2]
[350078849,1737601846722,-509.34889533,0.00019178,2]
[350078851,1737601846731,-3696.46,0.00019178,2]
[350078853,1737601846740,-500.0,0.00019178,2]
[350078855,1737601846750,-500.0,0.00019178,2]
[350078857,1737601846759,-701.7,0.00019178,2]
[350078859,1737601846769,-522.05698357,0.00019178,2]
[350078862,1737601846779,-500.0,0.00019178,2]
[350078864,1737601846788,-502.26,0.00019178,2]
[350078866,1737601846798,-632.22,0.00019178,2]
[350078868,1737601846808,-500.0,0.00019178,2]
[350078870,1737601846816,-827.27,0.00019178,2]
[350078872,1737601846825,-25898.06,0.00019178,2]
[350078874,1737601846835,-2227.95,0.00019178,2]
[350078876,1737601846844,-168.72906,0.00019178,2]
[350078878,1737601846853,-173.948407,0.00019178,2]
[350078880,1737601846862,-599.52,0.00019178,2]
[350078881,1737601846871,-169.366273,0.00019178,2]
[350078884,1737601846881,-4908.425293,0.0001918,2]
[350078886,1737601846891,-198.02419991,0.00019199,2]
[350078888,1737601846900,-5614.12358836,0.000192,5]
[350078890,1737601846909,-1143.33990182,0.000192,5]
[350078892,1737601846918,-2380.501,0.000192,2]
[350078894,1737601846927,-500.0,0.000192,2]
[350078896,1737601846936,-9193.71014241,0.000192,15]
[350081349,1737602569842,819.16,0.00018,30]
[350081365,1737602861809,182.258712,0.00013973,2]
[350081382,1737602991771,9472.73728971,0.00018,30]
[350081405,1737603032826,-473.787,0.00017001,2]
[350081406,1737603032836,-31.51137822,0.00017173,2]
[350081407,1737603032849,-442.27562178,0.00017173,2]
[350081408,1737603032859,-473.787,0.0001824,2]
[350081410,1737603032869,-870.62588381,0.000189,2]
[350081412,1737603032879,-500.0,0.00018903,2]
[350081413,1737603032888,-206.81043308,0.00018974,2]
[350081424,1737603038390,-3493.71521634,0.00019,2]
[350081425,1737603038404,-967.74996774,0.00019,2]
[350081426,1737603038414,-452.49295903,0.00019078,2]
[350081427,1737603038423,-8727.02138812,0.00019157,2]
[350081428,1737603038445,-11325.9770705,0.00019157,2]
[350081440,1737603040702,-154.0,0.00018791,2]
[350081441,1737603040712,-1036.61718706,0.00019157,2]
[350081453,1737603043604,-154.0,0.00018791,2]
[350081454,1737603043613,-238.40929394,0.0001881,2]
[350081455,1737603043623,-655.31032107,0.00019157,2]
[350081483,1737603840424,189.533571,0.00013973,2]
[350081513,1737604232726,-478.68381884,0.00017589,2]
[350081514,1737604232735,-889.7167624,0.00017925,2]
[350081515,1737604232745,-1574.2900146,0.00018078,2]
[350081516,1737604232757,-470.746,0.0001824,2]
[350081517,1737604232766,-600.0,0.00018432,2]
[350081518,1737604232775,-300.0,0.00018699,2]
[350081519,1737604232784,-278.1798635,0.000187,2]
[350081520,1737604232793,-299.7442896,0.000187,2]
[350081521,1737604232803,-353.9568139,0.000187,2]
[350081522,1737604232812,-296.2865203,0.000187,2]
[350081523,1737604232821,-158.184091,0.000187,2]
[350081524,1737604232832,-353.9568139,0.000187,2]
[350081525,1737604232841,-353.9568139,0.000187,2]
[350081526,1737604232851,-153.0,0.000187,2]
[350081527,1737604232860,-215.2923755,0.000187,2]
[350081528,1737604232870,-154.2043963,0.000187,2]
[350081529,1737604232880,-153.0,0.000187,2]
[350081530,1737604232890,-650.7580891,0.000187,2]
[350081531,1737604232899,-215.2923755,0.000187,2]
[350081532,1737604232908,-353.8262533,0.000187,2]
[350081533,1737604232918,-153.0,0.000187,2]
[350081534,1737604232930,-154.2043963,0.000187,2]
[350081535,1737604232940,-153.0,0.000187,2]
[350081536,1737604232949,-11715.23628266,0.00018858,2]
[350081537,1737604232959,-353.9568139,0.000189,2]
[350081538,1737604232969,-353.9568139,0.000189,2]
[350081539,1737604232979,-353.9568139,0.000189,2]
[350081540,1737604232989,-353.9568139,0.000189,2]
[350081541,1737604232999,-741.34401948,0.000189,2]
[350081542,1737604233008,-353.9568139,0.000189,2]
[350081543,1737604233018,-353.9568139,0.000189,2]
[350081544,1737604233028,-353.9568139,0.000189,2]